Cogmind - Beta 16 @@@ ROGUE MODE // 2025.11.07 @ 19:56:29 Player: FrigidRock Result: Destroyed by G-47 Trooper with Particle Gun Performance ------------- Evolutions (2) 1000 Regions Visited (5) 1000 Robots Destroyed (31) 155 Value Destroyed (592) 592 Prototype IDs (3) 60 Alien Tech Used (0) 0 Bonus (120) 120 TOTAL SCORE: 2927 Bonus ------- Follower Combat Kills 120 Cogmind --------- Core Integrity 0/550 Matter 279/300 Energy 99/100 System Corruption 16% Temperature Warm (129) Movement Core (50) Location -8/Storage Parts ------- > --- POWER (1) -------- (None) > --- PROPULSION (4) --- (None) > --- UTILITY (4) ------ (None) > --- WEAPON (2) ------- (None) > --- INVENTORY (5) ---- Large Storage Unit Peak State ------------ > --- POWER ------------ Light Deuterium Engine > --- PROPULSION ------- Improved Aluminum Leg Wheel Improved Hover Unit Airjet > --- UTILITY ---------- Improved Sensor Array Reaction Control System Light Armor Plating Hacking Suite > --- WEAPON ----------- Particle Gun Improved Medium Laser > --- INVENTORY -------- Light Deuterium Engine Heat Sink Medium Storage Unit Large Storage Unit Datajack [Rating: 26] Favorites ----------- Power Light Ion Engine Engine Light Ion Engine Propulsion Aluminum Leg Leg Aluminum Leg Wheel Wheel Hover Unit Improved Hover Unit Utility Structural Scanner Device Structural Scanner Storage Small Storage Unit Processor Transport Network Coupler Hackware Hacking Suite Protection Makeshift Light Armor Plating Weapon Medium Laser Energy Gun Medium Laser Energy Cannon Advanced Beam Cannon Ballistic Gun Light Assault Rifle Launcher Grenade Launcher Build | -11 -10 -10 -10 -8 -8 ------- Run | Yrd Mat Min Sub Mat Sto Slots Evolved 4 | . . . . 4 . Power . | . . . . . . Propulsion 2 | . . . . 2 . Utility 2 | . . . . 2 . Weapon . | . . . . . . Parts Attached 53 | 10 4 . 10 22 7 Power 9 | 1 2 . 2 3 1 Engine 9 | 1 2 . 2 3 1 Core . | . . . . . . Reactor . | . . . . . . Propulsion 12 | 2 . . 3 6 1 Treads . | . . . . . . Leg 8 | 2 . . 3 3 . Wheel 1 | . . . . . 1 Hover 3 | . . . . 3 . Flight . | . . . . . . Utility 19 | 4 2 . 2 8 3 Device 9 | 3 1 . . 3 2 Storage 4 | 1 1 . . 2 . Processor 3 | . . . 1 2 . Hackware 1 | . . . . . 1 Protection 2 | . . . 1 1 . Artifact . | . . . . . . Weapon 13 | 3 . . 3 5 2 Energy Gun 8 | 2 . . 1 5 . Energy Cannon 2 | . . . . . 2 Ballistic Gun 2 | 1 . . 1 . . Ballistic Cannon . | . . . . . . Launcher 1 | . . . 1 . . Special Weapon . | . . . . . . Impact Weapon . | . . . . . . Slashing Weapon . | . . . . . . Piercing Weapon . | . . . . . . Special Melee Weapon . | . . . . . . Unidentified Prototypes 3 | . . . . 2 1 Parts Lost 22 | . . . 6 11 5 Power 5 | . . . 1 2 2 Propulsion 7 | . . . 2 3 2 Utility 5 | . . . . 4 1 Weapon 5 | . . . 3 2 . Highest Loss Streak 5 | . . . 2 5 5 To Critical Strikes . | . . . . . . Average Backups 5 | 2 4 8 7 5 4 Power 1 | 1 1 2 2 . . Propulsion . | . . 1 1 1 . Utility 1 | . 1 2 1 1 2 Weapon 1 | . 1 2 1 . . Tool/Special . | . . . . . . Unused Backups 2 | . 1 . . . 1 Power . | . . . . . . Propulsion . | . . . . . . Utility 1 | . 1 . . . . Weapon . | . . . . . . Tool/Special 1 | . . . . . 1 Average Slot Usage (%) 85 | . 100 100 87 61 81 Engine 11 | . 14 14 12 5 8 Leg 23 | . 28 28 27 13 8 Hover 2 | . . . . 9 13 Device 12 | . 26 14 10 4 12 Storage 8 | . 1 14 14 4 . Processor 2 | . . . . 9 1 Protection 2 | . . . 3 4 7 Energy Gun 15 | . 28 28 11 7 10 Ballistic Gun 1 | . . . 1 2 . Launcher 2 | . . . 5 . . Peak Build Rating 26 | 11 9 7 12 22 26 Average Rating 10 | 7 8 7 9 13 20 On Entrance 8 | . 9 7 7 10 19 Avg Prop Armor Cover (%) 10 | . . . . 11 8 Naked Turns 9 | . . . . . 9 Heaviest Build 31 | 11 13 13 17 31 22 Greatest Support 40 | 20 20 20 30 40 15 Greatest Overweight (x) 4 | . . . . 1 4 Average Overweight (x) . | . . . . . . Largest Inventory Capacity 15 | 8 8 8 8 15 10 Average Capacity 7 | 5 5 8 8 8 5 Most Carried 8 | 3 8 8 8 8 6 Average Carried 5 | 2 4 8 7 4 3 Final Capacity 8 | 5 8 8 8 5 5 Final Carried 8 | 3 8 8 7 5 1 Class Distribution -------------------- 63% | Mutant 36% | Scavenger-Mutant Dominant Class ---------------- Mutant | -10/Materials Mutant | -10/Mines Scavenger-Mutant | -10/Subcaves Mutant | -8/Materials Scavenger-Mutant | -8/Storage Resources | -11 -10 -10 -10 -8 -8 ----------- Run | Yrd Mat Min Sub Mat Sto Matter Collected 888 | 305 50 . 217 234 82 Remotely . | . . . . . . Salvage Created 980 | 168 192 101 137 254 128 Parts 67 | 22 18 3 8 13 3 Haulers Intercepted 1 | . 1 . . . . Recyclers Shooed 1 | . . 1 . . . Parts Field Recycled . | . . . . . . Retrieved Matter . | . . . . . . Parts Self-Destructed . | . . . . . . Prevented . | . . . . . . Parts Restored . | . . . . . . Kills | -11 -10 -10 -10 -8 -8 ------- Run | Yrd Mat Min Sub Mat Sto Combat Hostiles Destroyed 19 | . 6 3 4 5 1 Melee 1 | . . . . 1 . Guns 14 | . 5 3 2 4 . Cannons 1 | . . . . . 1 AOE 2 | . . . 2 . . Classes Destroyed 8 | 3 2 . 1 1 1 Worker 4 | 2 . 2 . . . Tunneler 4 | 4 . . . . . Hauler 1 | . 1 . . . . Recycler 3 | 1 1 . . . 1 Swarmer 9 | . 6 3 . . . Grunt 5 | . . . . 5 . Hunter 1 | . . . . . 1 Subdweller 4 | . . . 4 . . Best Kill Streak 4 | 4 3 3 2 3 2 Combat Bots Only 3 | . 3 3 2 3 1 Max Kills in Single Turn 1 | 1 1 1 1 1 1 Gunslinging . | . . . . . . Exploded 1 | . . . 1 . . Melee 1 | . . . . 1 . Uniques/NPCs Destroyed . | . . . . . . Combat | -11 -10 -10 -10 -8 -8 -------- Run | Yrd Mat Min Sub Mat Sto Hostile Shots Fired 264 | . 30 24 54 90 66 Missed 74 | . 10 4 25 21 14 Hits 190 | . 20 20 29 69 52 Melee 2 | . . . . 2 . Projectile 188 | . 20 20 29 67 52 Critical Strikes 2 | . . . 1 1 . Damage Taken 2940 | . 177 150 698 1137 778 Core 788 | . 46 30 156 343 213 Absorbed by Shields 8 | . . . . 8 . Core Remaining (%) 53 | 100 . . 7 . . Volleys Fired 126 | 14 24 13 30 33 12 Largest 2 | 2 2 2 2 1 2 Hottest 136 | 100 100 100 100 50 136 Shots Fired 195 | 28 48 26 44 33 16 Gun 172 | 28 48 26 37 33 . Cannon 16 | . . . . . 16 Launcher 7 | . . . 7 . . Special . | . . . . . . Kinetic 44 | 5 . . 16 23 . Thermal 117 | 23 48 26 4 . 16 Explosive 7 | . . . 7 . . Electromagnetic 27 | . . . 17 10 . Robot Hit Streak 12 | 7 6 10 12 6 3 Robot Miss Streak 4 | 3 3 4 3 3 2 Penetration Max . | . . . . . . Secondary Targets 2 | . 1 . 1 . . Max Gunslinging Chain 1 | . 1 . 1 . . Shots Hit Robots 119 | 15 28 14 33 18 11 Core Hits 59 | 8 11 5 15 16 4 Critical Kills . | . . . . . . Critical Parts Destroyed . | . . . . . . Critical Strikes 7 | . 3 4 . . . Burn 7 | . 3 4 . . . Melee Attacks . | . . . . . . Impact . | . . . . . . Slashing . | . . . . . . Piercing . | . . . . . . Sneak Attacks . | . . . . . . Combat Hostiles . | . . . . . . Follow-up Attacks . | . . . . . . Damage Inflicted 2046 | 180 363 175 756 321 251 Guns 1304 | 180 363 175 345 241 . Cannons 247 | . . . . . 247 Explosions 411 | . . . 411 . . Melee . | . . . . . . Ramming 84 | . . . . 80 4 Kinetic 199 | 19 . . 92 88 . Thermal 995 | 161 363 175 49 . 247 Explosive 411 | . . . 411 . . Electromagnetic 357 | . . . 204 153 . Impact . | . . . . . . Slashing . | . . . . . . Piercing . | . . . . . . Highest Corruption 16 | . . . . 16 16 Average Corruption 13 | . . . . 11 16 Corruption Purged . | . . . . . . Corruption Blocked . | . . . . . . Effects 21 | . . . . 12 9 Message Errors 6 | . . . . 5 1 Matter Fused 5 | . . . . 2 3 Heat Flow Errors 2 | . . . . 1 1 Energy Discharges 1 | . . . . . 1 Parts Rejected 1 | . . . . . 1 Data Loss (minor) 3 | . . . . 1 2 Data Loss (major) 1 | . . . . 1 . Misdirections 2 | . . . . 2 . Overload Shots . | . . . . . . Overflow Damage . | . . . . . . Projectiles . | . . . . . . Explosions . | . . . . . . Melee . | . . . . . . Knockbacks . | . . . . . . Impact . | . . . . . . Kinetic . | . . . . . . Secondary . | . . . . . . Self-Inflicted Damage 56 | . . . 20 34 2 Shots 1 | . . . 1 . . Rammed 35 | . . . . 34 1 Targets Rammed 35 | . . . . 34 1 Kicked . | . . . . . . Crushed . | . . . . . . Highest Temperature 423 | 195 312 313 . 178 423 Average Temperature 102 | 78 74 114 . 33 257 Received Heat Transfer 954 | . 24 . 72 606 252 Effects 5 | . . 1 . . 4 Energy Bleed 1 | . . 1 . . . Interference 3 | . . . . . 3 Damage (minor) 1 | . . . . . 1 Siege Activations . | . . . . . . Martial Activations . | . . . . . . Shielding Activations . | . . . . . . Robots Disrupted . | . . . . . . Combat Hostiles . | . . . . . . Robots Corrupted . | . . . . . . Combat Hostiles . | . . . . . . Parts Fried . | . . . . . . Impact Corruptions . | . . . . . . Robots Melted 1 | . 1 . . . . Combat Hostiles 1 | . 1 . . . . Parts Melted 4 | . 1 2 . . 1 Heat Transferred 3182 | 481 1295 814 148 . 444 Parts Sabotaged . | . . . . . . Parts Stolen . | . . . . . . Parts Stripped . | . . . . . . Power Chain Reactions . | . . . . . . Alert | -11 -10 -10 -10 -8 -8 ------- Run | Yrd Mat Min Sub Mat Sto Maximum Alert Level . | . . . . . . Low Security (%) 100 | 100 100 100 . 100 100 Level 1 . | . . . . . . Level 2 . | . . . . . . Level 3 . | . . . . . . Level 4 . | . . . . . . Level 5 . | . . . . . . High Security . | . . . . . . Max Security . | . . . . . . Peak Influence 98 | 15 98 88 . 40 30 Initial 28 | . . 28 . . 5 Average 14 | 2 25 28 . 3 4 Influence Increases 486 | 35 195 80 . 141 35 Destroy 0b10 Robot/C 300 | . 120 60 . 100 20 Destroy 0b10 Robot/NC 60 | 35 10 10 . . 5 Destroy Leader 52 | . 22 10 . 10 10 Successful Hack 29 | . 13 . . 16 . Lose Combat Pursuer 45 | . 30 . . 15 . Influence Decreases 481 | 35 122 153 . 126 45 Entered New Map 55 | . . 45 . . 10 Time Decay 366 | 35 122 108 . 76 25 Lost Part 60 | . . . . 50 10 Squads Dispatched 9 | . 2 . . 5 2 Investigation 2 | . 1 . . 1 . Extermination . | . . . . . . Reinforcement 5 | . 1 . . 2 2 Assault . | . . . . . . Garrison 2 | . . . . 2 . Intercept . | . . . . . . Searches Triggered . | . . . . . . Construction Impeded . | . . . . . . Haulers Reinforced . | . . . . . . Active Scanning Responses . | . . . . . . Cargo Convoy Interrupts . | . . . . . . Stealth | -11 -10 -10 -10 -8 -8 --------- Run | Yrd Mat Min Sub Mat Sto Distress Signals 2 | . 1 . . 1 . Communications Jammed . | . . . . . . Distress Signals . | . . . . . . Times Spotted 44 | . 13 3 10 10 8 Peak Tracking Total 5 | . 4 3 2 4 5 Tactical Retreats 3 | . 1 . 1 1 . Traps | -11 -10 -10 -10 -8 -8 ------- Run | Yrd Mat Min Sub Mat Sto Traps Triggered 2 | . 1 . 1 . . Indirectly . | . . . . . . Trap Hack Attempts . | . . . . . . Triggered . | . . . . . . Disarmed . | . . . . . . Reprogrammed . | . . . . . . Reused . | . . . . . . Traps Extracted . | . . . . . . Installed . | . . . . . . Triggered . | . . . . . . Machines | -11 -10 -10 -10 -8 -8 ---------- Run | Yrd Mat Min Sub Mat Sto Machines Disabled . | . . . . . . Max in Single Turn . | . . . . . . Machines Repaired . | . . . . . . Machines Dismantled . | . . . . . . Machines Sabotaged . | . . . . . . Overloaded Fab Kills . | . . . . . . Hacking | -11 -10 -10 -10 -8 -8 --------- Run | Yrd Mat Min Sub Mat Sto Machines Accessed 12 | . 4 1 1 3 3 Terminals 10 | . 4 1 . 2 3 Fabricators . | . . . . . . Repair Stations . | . . . . . . Recycling Units 1 | . . . . 1 . Scanalyzers . | . . . . . . Garrison Access . | . . . . . . Total Hacks 29 | . 11 2 3 9 4 Successful 14 | . 4 . 3 5 2 Failed 15 | . 7 2 . 4 2 Catastrophic 2 | . 1 . . 1 . Database Lockouts . | . . . . . . Manual 27 | . 13 2 5 5 2 Terminals 23 | . 11 2 . 6 4 Fabricators . | . . . . . . Repair Stations . | . . . . . . Recycling Units 3 | . . . . 3 . Scanalyzers . | . . . . . . Garrison Access . | . . . . . . Terminal Hacks 9 | . 3 . 3 2 1 Record 3 | . . . 3 . . Part Schematic 3 | . 2 . . 1 . Robot Analysis 1 | . 1 . . . . Open Door 1 | . . . . . 1 Maintenance Status 1 | . . . . 1 . Fabricator Hacks . | . . . . . . Repair Station Hacks . | . . . . . . Recycling Unit Hacks 2 | . . . . 2 . Report Inventory 1 | . . . . 1 . Retrieve Components 1 | . . . . 1 . Scanalyzer . | . . . . . . Garrison Access Hacks . | . . . . . . Unauthorized Hacks 3 | . 1 . . 1 1 Terminals 3 | . 1 . . 1 1 Botnet 2 | . . . . 1 1 Skim 1 | . 1 . . . . Fabricators . | . . . . . . Repair Stations . | . . . . . . Recycling Units . | . . . . . . Scanalyzers . | . . . . . . Garrison Access . | . . . . . . Data Cores Recovered . | . . . . . . Used . | . . . . . . Hacking Detections 9 | . 3 1 . 3 2 Full Trace Events 1 | . . . . . 1 Feedback Events . | . . . . . . Feedback Blocked . | . . . . . . Robot Schematics Acquired . | . . . . . . Robots Built . | . . . . . . Authchips . | . . . . . . Time . | . . . . . . Total Robot Build Rating . | . . . . . . Part Schematics Acquired 3 | . 2 . . 1 . Parts Built . | . . . . . . Authchips . | . . . . . . Time . | . . . . . . Total Part Build Rating . | . . . . . . Part Studies Acquired . | . . . . . . Parts Repaired . | . . . . . . Time . | . . . . . . Parts Recycled . | . . . . . . Recycled Matter . | . . . . . . Retrieved Matter . | . . . . . . Retrieved Components 10 | . . . . 10 . Parts Scanalyzed . | . . . . . . Part Schematics Acquired . | . . . . . . Parts Damaged . | . . . . . . Bothacking | -11 -10 -10 -10 -8 -8 ------------ Run | Yrd Mat Min Sub Mat Sto Used RIF Installer . | . . . . . . Robots Hacked . | . . . . . . Non-combat . | . . . . . . Combat . | . . . . . . Robot Hacks Applied . | . . . . . . Relay Couplers Released . | . . . . . . Fabnet Peak Effective % . | . . . . . . Robots Rewired . | . . . . . . Allies Hacked . | . . . . . . Hacks Repelled . | . . . . . . Allies | -11 -10 -10 -10 -8 -8 -------- Run | Yrd Mat Min Sub Mat Sto Total Allies 3 | . . 3 . . . Largest Group 3 | . . 3 3 . . Highest-Rated Group 40 | . . 40 40 . . Highest-Rated Ally 16 | . . 16 16 . . Total Orders . | . . . . . . Ally Attacks 42 | . . . 42 . . Total Damage 601 | . . . 601 . . Kills 4 | . . . 4 . . Allies Corrupted . | . . . . . . Allies Melted . | . . . . . . Intel | -11 -10 -10 -10 -8 -8 ------- Run | Yrd Mat Min Sub Mat Sto Active Infowar (turns) 2227 | 107 493 352 822 379 74 Optics 208 | . . . . 184 24 Sensors 80 | . . . . 30 50 Terrain 554 | 107 447 . . . . Structural 1618 | . 337 352 822 107 . Seismic 254 | 99 155 . . . . T.N.C. 191 | . . . . 191 . Robot Analysis Total 1 | . 1 . . . . Derelict Logs Recovered 4 | . . 2 2 . . Drone Launches . | . . . . . . Drone Recoveries . | . . . . . . Exploration | -11 -10 -10 -10 -8 -8 ------------- Run | Yrd Mat Min Sub Mat Sto Turns Passed 2851 | 182 493 352 1075 565 184 Spaces Moved 1916 | 105 309 244 782 336 140 Core 52 | 4 . . . 31 17 Treads . | . . . . . . Legs 1657 | 101 309 244 782 221 . Wheels . | . . . . . . Hover 207 | . . . . 84 123 Flight . | . . . . . . Fastest Speed 50 | 50 120 120 120 50 50 Average Speed 118 | 117 120 120 124 116 91 Slowest Speed 250 | 120 120 120 140 210 250 Overloaded Moves . | . . . . . . Propulsion Burnouts . | . . . . . . Robots Hopped . | . . . . . . Potential Cave-ins . | . . . . . . Cave-ins Triggered . | . . . . . . Exploration Rate (%) 36 | 4 65 52 53 18 28 Regions Visited 5 Branch Regions 3 Pre-discovered Areas 3 | . . 2 1 . . Known Exits Taken 2 | . . . 1 1 . Unknown Exits Taken 3 | 1 1 1 . . . Scrap Searched 4 | . . . 4 . . Spaces Dug . | . . . . . . Terrain Destroyed 39 | . . . 39 . . Melee . | . . . . . . Projectile . | . . . . . . AOE 39 | . . . 39 . . Terrain Rammed . | . . . . . . Walls Destroyed . | . . . . . . Machines Disabled . | . . . . . . Actions | -11 -10 -10 -10 -8 -8 --------- Run | Yrd Mat Min Sub Mat Sto Total 2293 | 133 385 277 841 476 181 Wait 111 | . 32 21 9 41 8 Move 1911 | 104 308 243 781 335 140 Hop . | . . . . . . Pick Up 14 | 2 9 . . 1 2 Fast Attach 38 | 10 1 . 4 19 4 Attach 11 | . . . 2 5 4 Detach 6 | 1 . . 2 2 1 Swap 15 | . 4 . 9 . 2 Drop 26 | 2 7 . 4 6 7 Fire 126 | 14 24 13 30 33 12 Melee . | . . . . . . Ram 35 | . . . . 34 1 Kick . | . . . . . . Crush . | . . . . . . Escape Stasis . | . . . . . . Rewire . | . . . . . . Trap . | . . . . . . Miscellaneous . | . . . . . . Route ------- -11/Scrapyard -10/Materials (discovered 2 exits: *Min / Sub) -10/Mines (discovered 2 exits: [*Mat] / *Sub) -10/Subcaves -8/Materials -8/Storage History --------- Turn | Location | Event 12 | -11/Scrapyard | Discovered new exit (range 16) 183 | -11/Scrapyard | Entered Materials 206 | -10/Materials | Discovered new exit (range 15) 248 | -10/Materials | Discovered new exit (range 8) 317 | -10/Materials | Build established: Mutant 676 | -10/Materials | Entered Mines 856 | -10/Mines | Discovered new exit (range 15) 859 | -10/Mines | Learned location of Zion (-6) 884 | -10/Mines | Discovered new exit (range 10) 969 | -10/Mines | Assisted by bots powering up and referring to "LRC-V3" 1028 | -10/Mines | Entered Subcaves 1028 | -10/Subcaves | Accompanied by 3 allies 1029 | -10/Subcaves | Approached by a straggling Scientist 1248 | -10/Subcaves | Discovered new exit (range 8) 1311 | -10/Subcaves | Identified exit to Materials 1418 | -10/Subcaves | Visited Clippyterm 1421 | -10/Subcaves | Learned location of Section 7 (-2) 1496 | -10/Subcaves | Shifting Twisted Machinery released Sub. Machine Gun 1517 | -10/Subcaves | Shifting Twisted Machinery released Sub. Power Source 1562 | -10/Subcaves | Build established: Scavenger-Mutant 1847 | -10/Subcaves | Core integrity fell below 50% 1859 | -10/Subcaves | Disturbed a concealed Subdweller 1873 | -10/Subcaves | Core integrity fell below 20% 1957 | -10/Subcaves | Disturbed a concealed Subdweller 2103 | -10/Subcaves | Entered Materials 2103 | -8/Materials | Evolved 4 slots: Propulsion x2, Utility x2 2104 | -8/Materials | Identified exit to Storage 2272 | -8/Materials | Build established: Mutant 2346 | -8/Materials | Lost 4 parts (1p2n1u) 2395 | -8/Materials | Core integrity fell below 50% 2419 | -8/Materials | System corruption reached 10% 2440 | -8/Materials | Lost 5 parts (1p2u2w) 2494 | -8/Materials | Garrison activated, responded to threat 2547 | -8/Materials | Met 7R-MNS 2668 | -8/Materials | Entered Storage 2786 | -8/Storage | Build established: Scavenger-Mutant 2832 | -8/Storage | Core integrity fell below 20% 2843 | -8/Storage | Released all parts (6) 2852 | -8/Storage | Destroyed by G-47 Trooper with Particle Gun Last Messages --------------- 02822_ Overheating: System interference. 02822_ Heat Sink temporarily disabled. 02824_ Overheating: System interference. 02824_ Adv. Beam Cannon temporarily disabled. 02824_ Reaction Control System temporarily disabled. 02825_ R-06 Scavenger collects Carbon-fiber Leg. 02828_ R-06 Scavenger collects Imp. Medium Laser. 02828_ R-06 Scavenger destroyed. 02829_ Acquired 82 matter. 02837_ Overheating: Hacking Suite damaged (-1). 02837_ System corrupted: Adv. Beam Cannon rejected. 02837_ Lgt. Deuterium Engine destroyed. 02843_ Released Heat Sink. 02843_ Released Adv. Beam Cannon. 02843_ Released Reaction Control System. 02843_ Released Hacking Suite. 02843_ Released Imp. Aluminum Leg. 02843_ Released Wheel. [Achievement: Live, Flee, And Rebuild] 02843_ Slammed into G-47 Trooper. Map ----- +----------------------------------------------------+ | ?????????????????????????????????????????????????? | | ?????????????????????????????????????????????????? | | ????????????????????????? ?????????????????????? | | ????????????????????????? ?????????????????????? | | ????????????????????????? ?????????????????????? | | ????????????????????????? ?????????????????????? | | ????????????????????????# ?????????????????????? | | ????????????????????????# #?????????????????????? | | ????????????????????????# #?????????????????????? | | ????????????????????????# #?????????????????????? | | ????????????????????????# #?????????????????????? | | ??????????????###???????# #?????????????????????? | | ?????????????##T#???????# #?????????????????????? | | ?????????????# "???????# #?????????????????????? | | ?????????????# "???????#a #?????????????????????? | | ?????????????# #????####gg#?????????????????????? | | ????????######/####### u#?????????????????????? | | ????????# #?????????????????????? | | ????????# ! #?????????????????????? | | ????????# =[%!= #?????????????????????? | | ????????# #####/#### #?????????????????????? | | ????????# #??#][=]### ##?????????????????????? | | ????????# #??##"["#?# #??????????????????????? | | ????????# #???#[]]#?# #??????????????????????? | | ????????# #???#!]]#?# #??????????????????????? | | ????????# #???#####?# @#??????????????????????? | | ????????# #?????????# +??????????????????????? | | ????##### #?????????# #??????????????????????? | | ???## + #?????????# #??????????????????????? | | ???#T # #?????????# #??????????????????????? | | ???## ###/ #?????????# #??????????????????????? | | ???#! !?# *#?????????# ##########?????????????? | | ???#! !?# =%#?????????# # ?????????????? | | ???#! !## =#?????????# # ?????????????? | | ???#! !## ########??# # """ """ ????????????? | | ???###### # """ #??# # """ """ #????????????? | | ????????# # "T" #??# / """ """ #????????????? | | ######### # #??# o# ^ #????????????? | | # # # #??# + #????????????? | | # [+ # #### # #????????????? | | # !/# # """ + #####"T"###????????????? | | # !+ + """ #####+#####???"#??????????????? | | # # # """ # #???????????????????? | | # # # # #???????????????????? | | # # # """ # #???????????????????? | | # # # """ # ! #???????????????????? | | # # # """ # #???????????????????? | | # ##### # #???????????????????? | | # ! #???######## #???????????????????? | | #########??????????# #???????????????????? | +----------------------------------------------------+ Best States ------------- Heat Dissipation 41 Energy Generation 14 Energy Capacity 250 Matter Stores 300 Matter Capacity 300 Sight Range 18 Robot Scan Range 15 Terrain Scan Range 16 Terrain Scan Density 10 Armor Coverage 150 Evasion (%) 58 Offensive Hacking 10 Item Schematics ----------------- Med. Storage Unit | -10/Materials | Hacked Lrg. Storage Unit | -10/Materials | Hacked Plasma Cutter | -8/Materials | Hacked Robot Schematics ------------------ None Fabricated ------------ Nothing Repaired ---------- Nothing Studied --------- None Alien Tech Used ----------------- None Achievements -------------- Live, Flee, And Rebuild Challenges ------------ None Game ------ Seed ReflexBehemothScrapsphere Manual? 0 Play Time 00:30:53 Cumulative 385.5 hours Start 2025.11.05 @ 22:18:49 End 2025.11.07 @ 19:56:29 Sessions 4 Manual Loads 0 Difficulty Rogue Special Mode None Game No. 163 Rogue 92 Adventurer 68 Explorer 3 Win Type - Total 33 Types 19/2/3/4/3/0/0/0/0/2 Lore% 78 Gallery% 76 Achievement% 52 Wizard Run 0 Options --------- Layout 0 ASCII 0 Keyboard 0 Movement Numpad Keybinds 0 Fullscreen 1 Font 24/Smallcaps Map View 76x50 Zoom Use 0% Tactical HUD 1 Map Filters NONE Filters NONE Steam 1 RUN: f04e455c-f99f-4699-a98e-486586310e34